lending/lending_fUSD_20250114
["ID","MTS","AMOUNT","RATE_DAILY","PERIOD"]
[348950054,1736889039985,-500.0,9.997e-05,2]
[348950055,1736889039994,-500.0,9.997e-05,2]
[348950056,1736889040004,-500.0,9.997e-05,2]
[348950057,1736889040015,-500.0,9.997e-05,2]
[348950058,1736889040024,-500.0,9.997e-05,2]
[348950059,1736889040033,-500.0,9.997e-05,2]
[348950060,1736889040043,-500.0,9.997e-05,2]
[348950061,1736889040052,-500.0,9.997e-05,2]
[348950062,1736889040062,-500.0,9.997e-05,2]
[348950063,1736889040072,-500.0,9.997e-05,2]
[348950064,1736889040082,-2019.75,9.997e-05,2]
[348950065,1736889040091,-500.0,9.997e-05,2]
[348950066,1736889040101,-500.0,9.997e-05,2]
[348950067,1736889040111,-500.0,9.997e-05,2]
[348950069,1736889040122,-500.0,9.997e-05,2]
[348950071,1736889040131,-500.0,9.997e-05,2]
[348950073,1736889040140,-500.0,9.997e-05,2]
[348950075,1736889040150,-500.0,9.997e-05,2]
[348950077,1736889040159,-500.0,9.997e-05,2]
[348950079,1736889040168,-544.83,9.997e-05,2]
[348950080,1736889040178,-500.0,9.997e-05,2]
[348950082,1736889040187,-500.0,9.997e-05,2]
[348950084,1736889040197,-500.0,9.997e-05,2]
[348950086,1736889040206,-500.0,9.997e-05,2]
[348950088,1736889040215,-500.0,9.997e-05,2]
[348950090,1736889040225,-500.0,9.997e-05,2]
[348950092,1736889040234,-500.0,9.997e-05,2]
[348950094,1736889040244,-500.0,9.997e-05,2]
[348950096,1736889040254,-500.0,9.997e-05,2]
[348950098,1736889040263,-500.0,9.997e-05,2]
[348950100,1736889040273,-500.0,9.997e-05,2]
[348950102,1736889040283,-500.0,9.997e-05,2]
[348950104,1736889040292,-500.0,9.997e-05,2]
[348950106,1736889040302,-210.79,9.997e-05,2]
[348950108,1736889040312,-500.0,9.997e-05,2]
[348950110,1736889040322,-500.0,9.997e-05,2]
[348950111,1736889040331,-500.0,9.997e-05,2]
[348950113,1736889040340,-500.0,9.997e-05,2]
[348950115,1736889040349,-500.0,9.997e-05,2]
[348950117,1736889040359,-500.0,9.997e-05,2]
[348950119,1736889040368,-500.0,9.997e-05,2]
[348950121,1736889040379,-2544.68,9.997e-05,2]
[348950123,1736889040389,-500.0,9.997e-05,2]
[348950125,1736889040399,-500.0,9.997e-05,2]
[348950127,1736889040408,-500.0,9.997e-05,2]
[348950129,1736889040418,-500.0,9.997e-05,2]
[348950131,1736889040426,-500.0,9.997e-05,2]
[348950133,1736889040436,-613.12,9.997e-05,2]
[348950135,1736889040445,-500.0,9.997e-05,2]
[348950137,1736889040454,-500.0,9.997e-05,2]
[348950139,1736889040464,-500.0,9.997e-05,2]
[348950141,1736889040473,-500.0,9.997e-05,2]
[348950143,1736889040482,-500.0,9.997e-05,2]
[348950145,1736889040491,-538.17307005,9.997e-05,2]
[348950147,1736889040502,-500.0,9.997e-05,2]
[348950149,1736889040511,-500.0,9.997e-05,2]
[348950151,1736889040521,-500.0,9.997e-05,2]
[348950153,1736889040530,-500.0,9.997e-05,2]
[348950155,1736889040539,-500.0,9.997e-05,2]
[348950157,1736889040549,-500.0,9.997e-05,2]
[348950159,1736889040558,-500.0,9.997e-05,2]
[348950161,1736889040568,-500.0,9.997e-05,2]
[348950162,1736889040579,-500.0,9.997e-05,2]
[348950163,1736889040589,-500.0,9.997e-05,2]
[348950164,1736889040599,-500.0,9.997e-05,2]
[348950165,1736889040608,-500.0,9.997e-05,2]
[348950166,1736889040617,-500.0,9.997e-05,2]
[348950167,1736889040629,-500.0,9.997e-05,2]
[348950168,1736889040638,-500.0,9.997e-05,2]
[348950169,1736889040647,-500.0,9.997e-05,2]
[348950170,1736889040657,-502.00434583,9.997e-05,2]
[348950171,1736889040667,-500.0,9.997e-05,2]
[348950172,1736889040677,-500.0,9.997e-05,2]
[348950173,1736889040687,-500.0,9.997e-05,2]
[348950175,1736889040697,-500.0,9.997e-05,2]
[348950177,1736889040706,-500.0,9.997e-05,2]
[348950179,1736889040715,-2143.33,9.997e-05,2]
[348950181,1736889040725,-500.0,9.997e-05,2]
[348950183,1736889040735,-500.0,9.997e-05,2]
[348950185,1736889040744,-500.0,9.997e-05,2]
[348950187,1736889040753,-500.0,9.997e-05,2]
[348950189,1736889040762,-500.0,9.997e-05,2]
[348950191,1736889040772,-500.0,9.997e-05,2]
[348950193,1736889040781,-500.0,9.997e-05,2]
[348950195,1736889040790,-500.0,9.997e-05,2]
[348950197,1736889040799,-500.0,9.997e-05,2]
[348950199,1736889040808,-500.0,9.997e-05,2]
[348950202,1736889040827,-500.0,9.997e-05,2]
[348950204,1736889040837,-500.0,9.997e-05,2]
[348950206,1736889040847,-500.0,9.997e-05,2]
[348950208,1736889040857,-500.0,9.997e-05,2]
[348950209,1736889040866,-1261.69,9.997e-05,2]
[348950212,1736889040877,-204.71181089,9.997e-05,2]
[348950213,1736889040887,-500.0,9.997e-05,2]
[348950216,1736889040896,-500.0,9.997e-05,2]
[348950217,1736889040906,-500.0,9.997e-05,2]
[348950219,1736889040916,-500.0,9.997e-05,2]
[348950244,1736889041183,-500.0,9.997e-05,2]
[348950245,1736889041193,-500.0,9.997e-05,2]
[348950246,1736889041203,-500.0,9.997e-05,2]
[348950247,1736889041213,-500.0,9.997e-05,2]
[348950248,1736889041223,-500.0,9.997e-05,2]
[348950249,1736889041232,-506.09,9.997e-05,2]
[348950250,1736889041242,-500.0,9.997e-05,2]
[348950251,1736889041251,-500.0,9.997e-05,2]
[348950252,1736889041260,-500.0,9.997e-05,2]
[348950253,1736889041270,-500.0,9.997e-05,2]
[348950254,1736889041279,-500.0,9.997e-05,2]
[348950255,1736889041289,-500.0,9.997e-05,2]
[348950256,1736889041298,-500.0,9.997e-05,2]
[348950257,1736889041309,-515.65,9.997e-05,2]
[348950258,1736889041319,-500.0,9.997e-05,2]
[348950259,1736889041329,-2194.0,9.997e-05,2]
[348950260,1736889041339,-683.79,9.997e-05,2]
[348950261,1736889041348,-500.0,9.997e-05,2]
[348950262,1736889041357,-500.0,9.997e-05,2]
[348950263,1736889041366,-500.0,9.997e-05,2]
[348950264,1736889041377,-997.51,9.997e-05,2]
[348950265,1736889041386,-500.0,9.997e-05,2]
[348950266,1736889041395,-636.03532532,9.997e-05,2]
[348950267,1736889041405,-500.0,9.997e-05,2]
[348950268,1736889041415,-500.0,9.997e-05,2]
[348950269,1736889041424,-500.0,9.997e-05,2]
[348950270,1736889041434,-500.0,9.997e-05,2]
[348950271,1736889041443,-500.0,9.997e-05,2]
[348950272,1736889041453,-579.57,9.997e-05,2]
[348950273,1736889041462,-500.0,9.997e-05,2]
[348950274,1736889041472,-500.0,9.997e-05,2]
[348950275,1736889041481,-500.0,9.997e-05,2]
[348950276,1736889041491,-500.0,9.997e-05,2]
[348950277,1736889041500,-1805.76,9.997e-05,2]
[348950278,1736889041509,-500.0,9.997e-05,2]
[348950279,1736889041518,-745.52,9.997e-05,2]
[348950280,1736889041527,-500.0,9.997e-05,2]
[348950281,1736889041537,-637.03,9.997e-05,2]
[348950282,1736889041546,-500.0,9.997e-05,2]
[348950283,1736889041555,-500.0,9.997e-05,2]
[348950284,1736889041567,-500.0,9.997e-05,2]
[348950285,1736889041577,-500.0,9.997e-05,2]
[348950286,1736889041586,-442.81694314,9.997e-05,2]
[348950287,1736889041596,-1373.49,9.997e-05,2]
[348950288,1736889041605,-590.18,9.997e-05,2]
[348950289,1736889041615,-961.15,9.997e-05,2]
[348950290,1736889041627,-3899.66,9.997e-05,2]
[348950291,1736889041637,-500.0,9.997e-05,2]
[348950292,1736889041647,-500.0,9.997e-05,2]
[348950293,1736889041657,-500.0,9.997e-05,2]
[348950294,1736889041666,-500.0,9.997e-05,2]
[348950295,1736889041676,-646.45,9.997e-05,2]
[348950296,1736889041685,-520.28,9.997e-05,2]
[348950297,1736889041695,-500.0,9.997e-05,2]
[348950298,1736889041704,-500.0,9.997e-05,2]
[348950299,1736889041714,-500.0,9.997e-05,2]
[348950300,1736889041723,-500.0,9.997e-05,2]
[348950301,1736889041732,-500.0,9.997e-05,2]
[348950302,1736889041742,-500.0,9.997e-05,2]
[348950303,1736889041751,-500.0,9.997e-05,2]
[348950304,1736889041761,-500.0,9.997e-05,2]
[348950305,1736889041771,-500.0,9.997e-05,2]
[348950306,1736889041780,-634.35,9.997e-05,2]
[348950307,1736889041790,-834.71,9.997e-05,2]
[348950308,1736889041799,-500.0,9.997e-05,2]
[348950309,1736889041809,-718.77,9.997e-05,2]
[348950310,1736889041819,-500.0,9.997e-05,2]
[348950311,1736889041828,-500.0,9.997e-05,2]
[348950312,1736889041837,-500.0,9.997e-05,2]
[348950313,1736889041848,-500.0,9.997e-05,2]
[348950314,1736889041857,-500.0,9.997e-05,2]
[348950315,1736889041866,-500.0,9.997e-05,2]
[348950316,1736889041876,-500.0,9.997e-05,2]
[348950317,1736889041886,-500.0,9.997e-05,2]
[348950318,1736889041896,-500.0,9.997e-05,2]
[348950319,1736889041905,-500.0,9.997e-05,2]
[348950320,1736889041915,-1180.4,9.997e-05,2]
[348950321,1736889041925,-1328.71,9.997e-05,2]
[348950322,1736889041935,-500.0,9.997e-05,2]
[348950323,1736889041944,-500.0,9.997e-05,2]
[348950324,1736889041953,-500.0,9.997e-05,2]
[348950325,1736889041963,-500.0,9.997e-05,2]
[348950326,1736889041972,-500.0,9.997e-05,2]
[348950327,1736889041982,-500.0,9.997e-05,2]
[348950328,1736889041992,-500.0,9.997e-05,2]
[348950329,1736889042001,-500.0,9.997e-05,2]
[348950330,1736889042011,-2819.76,9.997e-05,2]
[348950331,1736889042020,-500.0,9.997e-05,2]
[348950332,1736889042029,-500.0,9.997e-05,2]
[348950333,1736889042038,-500.0,9.997e-05,2]
[348950334,1736889042048,-2416.88,9.997e-05,2]
[348950335,1736889042057,-500.0,9.997e-05,2]
[348950336,1736889042066,-1337.68,9.997e-05,2]
[348950337,1736889042075,-500.0,9.997e-05,2]
[348950338,1736889042085,-902.28,9.997e-05,2]
[348950339,1736889042095,-500.0,9.997e-05,2]
[348950340,1736889042105,-500.0,9.997e-05,2]
[348950341,1736889042114,-549.52,9.997e-05,2]
[348950342,1736889042126,-746.11,9.997e-05,2]
[348950343,1736889042135,-500.0,9.997e-05,2]
[348950344,1736889042145,-500.0,9.997e-05,2]
[348950345,1736889042154,-1458.52,9.997e-05,2]
[348950346,1736889042164,-500.0,9.997e-05,2]
[348950347,1736889042173,-500.0,9.997e-05,2]
[348950348,1736889042182,-157.9438261,9.997e-05,2]
[348950349,1736889042192,-500.0,9.997e-05,2]
[348950350,1736889042201,-811.67,9.997e-05,2]
[348950351,1736889042211,-1031.97,9.997e-05,2]
[348950352,1736889042219,-500.0,9.997e-05,2]
[348950353,1736889042228,-791.8,9.997e-05,2]
[348950354,1736889042237,-500.0,9.997e-05,2]
[348950355,1736889042246,-500.0,9.997e-05,2]
[348950356,1736889042255,-1951.46,9.997e-05,2]
[348950357,1736889042264,-666.04,9.997e-05,2]
[348950358,1736889042274,-500.0,9.997e-05,2]
[348950359,1736889042283,-904.14,9.997e-05,2]
[348950360,1736889042291,-500.0,9.997e-05,2]
[348950361,1736889042301,-500.0,9.997e-05,2]
[348950362,1736889042311,-1390.08,9.997e-05,2]
[348950363,1736889042321,-564.24,9.997e-05,2]
[348950364,1736889042330,-1622.18,9.997e-05,2]
[348950365,1736889042340,-1177.2,9.997e-05,2]
[348950366,1736889042349,-849.08,9.997e-05,2]
[348950367,1736889042358,-500.0,9.997e-05,2]
[348950368,1736889042367,-500.0,9.997e-05,2]
[348950369,1736889042379,-500.0,9.997e-05,2]
[348950370,1736889042389,-500.0,9.997e-05,2]
[348950371,1736889042398,-397.55420369,9.997e-05,2]
[348950372,1736889042407,-2184.92,9.997e-05,2]
[348950373,1736889042417,-500.0,9.997e-05,2]
[348950374,1736889042426,-500.0,9.997e-05,2]
[348950375,1736889042435,-915.88,9.997e-05,2]
[348950376,1736889042445,-887.61,9.997e-05,2]
[348950377,1736889042454,-500.0,9.997e-05,2]
[348950378,1736889042463,-500.0,9.997e-05,2]
[348950379,1736889042472,-500.0,9.997e-05,2]
[348950380,1736889042482,-500.0,9.997e-05,2]
[348950381,1736889042492,-644.34,9.997e-05,2]
[348950382,1736889042501,-500.0,9.997e-05,2]
[348950383,1736889042511,-500.0,9.997e-05,2]
[348950384,1736889042520,-500.0,9.997e-05,2]
[348950385,1736889042530,-500.0,9.997e-05,2]
[348950386,1736889042539,-500.0,9.997e-05,2]
[348950387,1736889042548,-608.71,9.997e-05,2]
[348950388,1736889042557,-500.0,9.997e-05,2]
[348950389,1736889042569,-173.40642769,9.997e-05,2]
[348950390,1736889042580,-500.0,9.997e-05,2]
[348950391,1736889042592,-865.61,9.997e-05,2]
[348950392,1736889042602,-500.0,9.997e-05,2]
[348950393,1736889042612,-3425.73,9.997e-05,2]
[348950394,1736889042621,-1114.79,9.997e-05,2]
[348950395,1736889042630,-500.0,9.997e-05,2]
[348950396,1736889042639,-501.49118693,9.998e-05,2]
[348950397,1736889042648,-502.17195662,9.998e-05,2]
[348950398,1736889042658,-500.64202309,9.998e-05,2]
[348950400,1736889042667,-502.73523432,9.998e-05,2]
[348950402,1736889042676,-500.0,9.998e-05,2]
[348950404,1736889042685,-500.63039802,9.998e-05,2]
[348950406,1736889042694,-500.88764755,9.998e-05,2]
[348950408,1736889042703,-500.86620053,9.998e-05,2]
[348950410,1736889042712,-501.19377836,9.998e-05,2]
[348950412,1736889042721,-156.68560212,9.998e-05,2]
[348950414,1736889042730,-500.0,9.998e-05,2]
[348950415,1736889042740,-500.66813291,9.998e-05,2]
[348950416,1736889042749,-500.24940782,9.998e-05,2]
[348950417,1736889042758,-500.41380996,9.998e-05,2]
[348950418,1736889042767,-500.73778728,9.998e-05,2]
[348950419,1736889042776,-500.45611121,9.998e-05,2]
[348950420,1736889042785,-500.43183548,9.998e-05,2]
[348950421,1736889042794,-501.06039653,9.998e-05,2]
[348950422,1736889042803,-500.0,9.998e-05,2]
[348950423,1736889042811,-500.8417809,9.998e-05,2]
[348950424,1736889042820,-500.0,9.999e-05,2]
[348950425,1736889042829,-541.2,9.999e-05,2]
[348950426,1736889042838,-1511.81,9.999e-05,2]
[348950427,1736889042847,-709.29,9.999e-05,2]
[348950428,1736889042856,-500.0,9.999e-05,2]
[348950429,1736889042865,-500.0,9.999e-05,2]
[348950430,1736889042875,-74842.60725396,0.0001,2]
[348950431,1736889042884,-8037.58233943,0.0001,2]
[348950432,1736889042894,-708.3096607,0.0001,2]
[348950433,1736889042903,-97469.76416316,0.0001,2]
[348950434,1736889042912,-3000.0,0.0001,2]
[348950435,1736889042921,-279.80152851,0.0001,2]
[348950436,1736889042930,-1928.70295504,0.0001,2]
[348950437,1736889042939,-9511.56089096,0.00010071,4]
[348950438,1736889042948,-828.98,0.000101,2]
[348950439,1736889042957,-437.86,0.000101,2]
[348950440,1736889042966,-772.19,0.000101,2]
[348950441,1736889042975,-437.26,0.000101,2]
[348950442,1736889042983,-150.0,0.000101,2]
[348950443,1736889042992,-150.0,0.000101,2]
[348950444,1736889043002,-150.0,0.000101,2]
[348950445,1736889043011,-3000.0,0.0001012,2]
[348950446,1736889043020,-771.06,0.00010122,2]
[348950447,1736889043029,-1014.14,0.00010127,2]
[348950448,1736889043038,-158.33,0.00010137,2]
[348950449,1736889043047,-814.5,0.00010137,2]
[348950450,1736889043056,-168.77,0.00010137,2]
[348950451,1736889043065,-772.32,0.000102,2]
[348950452,1736889043076,-150.0,0.00010247,2]
[348950453,1736889043085,-437.26,0.00010247,2]
[348950454,1736889043095,-150.0,0.00010247,2]
[348950455,1736889043104,-437.26,0.00010247,2]
[348950456,1736889043113,-150.0,0.00010247,2]
[348950457,1736889043123,-150.0,0.00010247,2]
[348950458,1736889043132,-437.26,0.00010247,2]
[348950460,1736889043141,-150.0,0.00010247,2]
[348950462,1736889043151,-150.0,0.00010247,2]
[348950464,1736889043160,-150.0,0.00010247,2]
[348950466,1736889043169,-437.26,0.00010247,2]
[348950467,1736889043179,-150.0,0.00010247,2]
[348950468,1736889043188,-150.0,0.00010247,2]
[348950470,1736889043197,-150.0,0.00010247,2]
[348950472,1736889043207,-239.87,0.00010247,2]
[348950474,1736889043216,-500.0,0.00010271,2]
[348950476,1736889043225,-257.72,0.00010271,2]
[348950478,1736889043234,-500.0,0.00010271,2]
[348950480,1736889043244,-249.75,0.00010271,2]
[348950482,1736889043253,-500.0,0.00010271,2]
[348950484,1736889043262,-558.26,0.00010271,2]
[348950486,1736889043271,-500.0,0.00010271,2]
[348950488,1736889043280,-500.0,0.00010271,2]
[348950490,1736889043290,-500.0,0.00010271,2]
[348950492,1736889043299,-500.0,0.00010271,2]
[348950494,1736889043308,-500.0,0.00010271,2]
[348950496,1736889043318,-500.0,0.00010271,2]
[348950498,1736889043328,-500.0,0.00010271,2]
[348950500,1736889043337,-500.0,0.00010271,2]
[348950502,1736889043346,-874.13,0.00010271,2]
[348950504,1736889043355,-500.0,0.00010271,2]
[348950506,1736889043364,-500.0,0.00010271,2]
[348950508,1736889043374,-537.73,0.00010271,2]
[348950510,1736889043383,-573.18,0.00010271,2]
[348950512,1736889043392,-500.0,0.00010271,2]
[348950514,1736889043402,-535.81,0.00010271,2]
[348950516,1736889043411,-500.0,0.00010271,2]
[348950518,1736889043420,-960.98,0.00010271,2]
[348950520,1736889043429,-500.0,0.00010271,2]
[348950522,1736889043438,-500.0,0.00010271,2]
[348950524,1736889043448,-500.0,0.00010271,2]
[348950526,1736889043458,-500.0,0.00010271,2]
[348950528,1736889043467,-500.0,0.00010271,2]
[348950530,1736889043475,-1585.52,0.00010271,2]
[348950531,1736889043485,-500.0,0.00010271,2]
[348950532,1736889043494,-500.0,0.00010271,2]
[348950533,1736889043504,-500.0,0.00010271,2]
[348950534,1736889043515,-513.39091904,0.00010271,2]
[348950535,1736889043524,-500.0,0.00010271,2]
[348950536,1736889043533,-500.0,0.00010271,2]
[348950537,1736889043542,-465.88717016,0.00010271,2]
[348950538,1736889043551,-500.0,0.00010271,2]
[348950539,1736889043561,-500.0,0.00010271,2]
[348950540,1736889043572,-500.0,0.00010271,2]
[348950541,1736889043582,-500.0,0.00010271,2]
[348950542,1736889043592,-500.0,0.00010271,2]
[348950543,1736889043601,-878.16,0.00010271,2]
[348950544,1736889043609,-500.0,0.00010271,2]
[348950545,1736889043619,-500.0,0.00010271,2]
[348950546,1736889043630,-500.0,0.00010271,2]
[348950547,1736889043639,-500.0,0.00010271,2]
[348950548,1736889043649,-500.0,0.00010271,2]
[348950549,1736889043659,-663.982168,0.00010271,2]
[348950550,1736889043668,-500.0,0.00010271,2]
[348950551,1736889043677,-736.51,0.00010271,2]
[348950552,1736889043686,-500.0,0.00010271,2]
[348950553,1736889043695,-500.0,0.00010271,2]
[348950554,1736889043705,-605.19802321,0.00010271,2]
[348950555,1736889043715,-500.0,0.00010271,2]
[348950556,1736889043723,-500.0,0.00010271,2]
[348950557,1736889043733,-500.0,0.00010271,2]
[348950558,1736889043744,-500.0,0.00010271,2]
[348950559,1736889043754,-562.02,0.00010271,2]
[348950560,1736889043763,-500.0,0.00010271,2]
[348950561,1736889043772,-500.0,0.00010271,2]
[348950562,1736889043782,-1516.14,0.00010271,2]
[348950563,1736889043791,-654.425542,0.00010271,2]
[348950564,1736889043800,-500.0,0.00010271,2]
[348950565,1736889043809,-500.0,0.00010271,2]
[348950566,1736889043818,-500.0,0.00010271,2]
[348950567,1736889043829,-2415.41,0.00010271,2]
[348950568,1736889043839,-500.0,0.00010271,2]
[348950569,1736889043848,-589.3,0.00010271,2]
[348950570,1736889043857,-500.0,0.00010271,2]
[348950571,1736889043866,-792.69,0.00010271,2]
[348950572,1736889043876,-500.0,0.00010271,2]
[348950573,1736889043885,-500.0,0.00010271,2]
[348950574,1736889043894,-609.48,0.00010271,2]
[348950575,1736889043903,-500.0,0.00010271,2]
[348950576,1736889043912,-500.0,0.00010271,2]
[348950577,1736889043921,-756.05,0.00010271,2]
[348950578,1736889043930,-500.0,0.00010271,2]
[348950579,1736889043941,-500.0,0.00010271,2]
[348950580,1736889043951,-500.0,0.00010271,2]
[348950581,1736889043960,-500.0,0.00010271,2]
[348950582,1736889043969,-500.0,0.00010271,2]
[348950583,1736889043979,-500.0,0.00010271,2]
[348950584,1736889043989,-2019.75,0.00010271,2]
[348950585,1736889043998,-500.0,0.00010271,2]
[348950586,1736889044007,-500.0,0.00010271,2]
[348950587,1736889044016,-544.83,0.00010271,2]
[348950588,1736889044025,-500.0,0.00010271,2]
[348950589,1736889044034,-500.0,0.00010271,2]
[348950590,1736889044043,-500.0,0.00010271,2]
[348950591,1736889044053,-500.0,0.00010271,2]
[348950592,1736889044062,-2544.68,0.00010271,2]
[348950593,1736889044071,-613.12,0.00010271,2]
[348950594,1736889044080,-500.0,0.00010271,2]
[348950595,1736889044091,-500.0,0.00010271,2]
[348950596,1736889044100,-500.0,0.00010271,2]
[348950597,1736889044110,-500.0,0.00010271,2]
[348950598,1736889044120,-500.0,0.00010271,2]
[348950599,1736889044130,-500.0,0.00010271,2]
[348950600,1736889044140,-439.09633194,0.00010271,2]
[348950601,1736889044149,-500.0,0.00010271,2]
[348950602,1736889044158,-2143.33,0.00010271,2]
[348950603,1736889044167,-500.0,0.00010271,2]
[348950604,1736889044176,-500.0,0.00010271,2]
[348950605,1736889044185,-500.0,0.00010271,2]
[348950606,1736889044194,-500.0,0.00010271,2]
[348950607,1736889044203,-500.0,0.00010271,2]
[348950608,1736889044213,-500.0,0.00010271,2]
[348950609,1736889044222,-500.0,0.00010271,2]
[348950610,1736889044231,-500.0,0.00010271,2]
[348950611,1736889044240,-500.0,0.00010271,2]
[348950612,1736889044249,-500.0,0.00010271,2]
[348950613,1736889044259,-500.0,0.00010271,2]
[348950614,1736889044268,-1261.69,0.00010271,2]
[348950615,1736889044277,-500.0,0.00010271,2]
[348950616,1736889044286,-500.0,0.00010271,2]
[348950617,1736889044295,-500.0,0.00010271,2]
[348950618,1736889044304,-500.0,0.00010271,2]
[348950619,1736889044313,-500.0,0.00010271,2]
[348950620,1736889044322,-506.09,0.00010271,2]
[348950621,1736889044332,-500.0,0.00010271,2]
[348950622,1736889044341,-500.0,0.00010271,2]
[348950623,1736889044351,-500.0,0.00010271,2]
[348950624,1736889044360,-500.0,0.00010271,2]
[348950625,1736889044369,-500.0,0.00010271,2]
[348950626,1736889044379,-515.65,0.00010271,2]
[348950627,1736889044388,-500.0,0.00010271,2]
[348950628,1736889044399,-2194.0,0.00010271,2]
[348950629,1736889044408,-683.79,0.00010271,2]
[348950630,1736889044419,-500.0,0.00010271,2]
[348950631,1736889044431,-500.0,0.00010271,2]
[348950632,1736889044440,-500.0,0.00010271,2]
[348950633,1736889044450,-997.51,0.00010271,2]
[348950634,1736889044460,-500.0,0.00010271,2]
[348950635,1736889044469,-500.0,0.00010271,2]
[348950636,1736889044480,-320.00676941,0.00010271,2]
[348950637,1736889044489,-174.39941701,0.00010271,2]
[348950638,1736889044498,-500.0,0.00010271,2]
[348950639,1736889044508,-579.57,0.00010271,2]
[348950640,1736889044517,-500.0,0.00010271,2]
[348950641,1736889044527,-500.0,0.00010271,2]
[348950642,1736889044536,-500.0,0.00010271,2]
[348950643,1736889044545,-500.0,0.00010271,2]
[348950644,1736889044554,-1805.76,0.00010271,2]
[348950645,1736889044564,-356.64,0.00010271,2]
[348950646,1736889044575,-745.52,0.00010271,2]
[348950647,1736889044585,-500.0,0.00010271,2]
[348950648,1736889044594,-637.03,0.00010271,2]
[348950649,1736889044603,-500.0,0.00010271,2]
[348950650,1736889044614,-500.0,0.00010271,2]
[348950651,1736889044623,-500.0,0.00010271,2]
[348950652,1736889044632,-1373.49,0.00010271,2]
[348950653,1736889044641,-590.18,0.00010271,2]
[348950654,1736889044651,-961.15,0.00010271,2]
[348950655,1736889044661,-3899.66,0.00010271,2]
[348950656,1736889044671,-500.0,0.00010271,2]
[348950657,1736889044680,-500.0,0.00010271,2]
[348950658,1736889044689,-500.0,0.00010271,2]
[348950659,1736889044698,-646.45,0.00010271,2]
[348950660,1736889044707,-520.28,0.00010271,2]
[348950661,1736889044716,-500.0,0.00010271,2]
[348950662,1736889044725,-500.0,0.00010271,2]
[348950663,1736889044735,-500.0,0.00010271,2]
[348950664,1736889044744,-500.0,0.00010271,2]
[348950665,1736889044754,-500.0,0.00010271,2]
[348950666,1736889044763,-500.0,0.00010271,2]
[348950667,1736889044772,-591.45312377,0.00010271,2]
[348950668,1736889044782,-427.8,0.00010271,2]
[348950669,1736889044791,-634.35,0.00010271,2]
[348950670,1736889044801,-834.71,0.00010271,2]
[348950671,1736889044810,-500.0,0.00010271,2]
[348950672,1736889044820,-718.77,0.00010271,2]
[348950673,1736889044830,-500.0,0.00010271,2]
[348950674,1736889044839,-500.0,0.00010271,2]
[348950675,1736889044850,-500.0,0.00010271,2]
[348950676,1736889044859,-500.0,0.00010271,2]
[348950677,1736889044868,-500.0,0.00010271,2]
[348950678,1736889044879,-500.0,0.00010271,2]
[348950679,1736889044889,-500.0,0.00010271,2]
[348950680,1736889044899,-1180.4,0.00010271,2]
[348950681,1736889044910,-500.0,0.00010271,2]
[348950682,1736889044919,-1328.71,0.00010271,2]
[348950683,1736889044930,-500.0,0.00010271,2]
[348950684,1736889044939,-500.0,0.00010271,2]
[348950685,1736889044949,-500.0,0.00010271,2]
[348950686,1736889044959,-500.0,0.00010271,2]
[348950687,1736889044968,-500.0,0.00010271,2]
[348950688,1736889044978,-2819.76,0.00010271,2]
[348950689,1736889044987,-278.32916273,0.00010271,2]